Cogmind - Beta 15 @@@ ROGUE MODE // 2025.06.17 @ 19:48:44 Player: DreamCore Result: Destroyed by as-74113 with Assembled Heavy Rifle Performance ------------- Evolutions (0) 0 Regions Visited (4) 800 Robots Destroyed (9) 45 Value Destroyed (83) 83 Prototype IDs (0) 0 Alien Tech Used (0) 0 Bonus (0) 0 TOTAL SCORE: 928 Bonus ------- None Cogmind --------- Core Integrity 0/250 Matter 218/300 Energy 100/100 System Corruption 6% Temperature Cool (0) Movement Rolling (100) Location -9/Mines Parts ------- > --- POWER (1) -------- (None) > --- PROPULSION (2) --- Compact Wheel > --- UTILITY (2) ------ Small Storage Unit Improved Terrain Scanner > --- WEAPON (2) ------- Autogun > --- INVENTORY (8) ---- Wheel Wheel Scrap Suit Terrain Scan Processor ECM Suite Mini Grenade Launcher Peak State ------------ > --- POWER ------------ Light Ion Engine > --- PROPULSION ------- Wheel Compact Wheel > --- UTILITY ---------- Small Storage Unit Improved Terrain Scanner > --- WEAPON ----------- Autogun Battle Cannon > --- INVENTORY -------- Aluminum Leg Aluminum Leg Wheel Compact Wheel Terrain Scan Processor ECM Suite Autogun Mini Grenade Launcher [Rating: 12] Favorites ----------- Power Light Ion Engine Engine Light Ion Engine Propulsion Compact Wheel Leg Aluminum Leg Wheel Compact Wheel Utility Small Storage Unit Device Improved Terrain Scanner Storage Small Storage Unit Processor Visual Processing Unit Weapon Medium Laser Energy Gun Medium Laser Ballistic Gun Autogun Ballistic Cannon Battle Cannon Build | -11 -10 -10 -10 -9 ------- Run | Yrd Mat Min Exi Min Slots Evolved . | . . . . . Power . | . . . . . Propulsion . | . . . . . Utility . | . . . . . Weapon . | . . . . . Parts Attached 14 | . 5 . . 9 Power 2 | . . . . 2 Engine 2 | . . . . 2 Core . | . . . . . Reactor . | . . . . . Propulsion 5 | . 3 . . 2 Treads . | . . . . . Leg . | . . . . . Wheel 5 | . 3 . . 2 Hover . | . . . . . Flight . | . . . . . Utility 3 | . 1 . . 2 Device 2 | . . . . 2 Storage . | . . . . . Processor 1 | . 1 . . . Hackware . | . . . . . Protection . | . . . . . Artifact . | . . . . . Weapon 4 | . 1 . . 3 Energy Gun 1 | . 1 . . . Energy Cannon . | . . . . . Ballistic Gun 2 | . . . . 2 Ballistic Cannon 1 | . . . . 1 Launcher . | . . . . . Special Weapon . | . . . . . Impact Weapon . | . . . . . Slashing Weapon . | . . . . . Piercing Weapon . | . . . . . Special Melee Weapon . | . . . . . Unidentified Prototypes . | . . . . . Parts Lost 6 | . . . . 6 Power 2 | . . . . 2 Propulsion . | . . . . . Utility 1 | . . . . 1 Weapon 3 | . . . . 3 Highest Loss Streak 3 | . . . . 3 To Critical Strikes . | . . . . . Average Backups 7 | 6 7 8 8 7 Power . | 1 1 1 1 . Propulsion 3 | 4 4 4 4 2 Utility . | . . . . 1 Weapon 2 | 1 2 3 3 2 Tool/Special . | . . . . . Unused Backups 17 | . 5 . . 12 Power 2 | . 1 . . 1 Propulsion 6 | . . . . 6 Utility 4 | . 1 . . 3 Weapon 5 | . 3 . . 2 Tool/Special . | . . . . . Average Slot Usage (%) 96 | . 88 100 100 97 Engine 14 | . 14 14 14 14 Wheel 27 | . 27 28 28 27 Device 1 | . . . . 4 Storage 14 | . 14 14 14 14 Processor 9 | . 4 14 14 8 Energy Gun 24 | . 28 28 28 18 Ballistic Gun 2 | . . . . 6 Ballistic Cannon 1 | . . . . 3 Peak Build Rating 12 | 6 9 9 9 12 Average Rating 8 | 6 6 9 9 9 On Entrance 7 | 6 6 9 9 9 Naked Turns . | . . . . . Heaviest Build 16 | 12 12 12 12 16 Greatest Support 26 | 20 26 26 26 26 Greatest Overweight (x) . | . . . . . Average Overweight (x) . | . . . . . Largest Inventory Capacity 8 | 8 8 8 8 8 Average Capacity 8 | 8 8 8 8 8 Most Carried 8 | 6 8 8 8 8 Average Carried 7 | 6 7 8 8 7 Final Capacity 8 | 8 8 8 8 8 Final Carried 8 | 6 8 8 8 7 Class Distribution -------------------- 96% | Mutant 3% | Scavenger-Mutant Dominant Class ---------------- Mutant | -10/Materials Mutant | -10/Mines Mutant | -10/Exiles Mutant | -9/Mines Resources | -11 -10 -10 -10 -9 ----------- Run | Yrd Mat Min Exi Min Matter Collected 359 | 200 60 . . 99 Remotely . | . . . . . Salvage Created 328 | . 184 48 . 96 Parts 15 | . 11 4 . . Haulers Intercepted . | . . . . . Recyclers Shooed 1 | . 1 . . . Parts Field Recycled . | . . . . . Retrieved Matter . | . . . . . Parts Self-Destructed . | . . . . . Prevented . | . . . . . Kills | -11 -10 -10 -10 -9 ------- Run | Yrd Mat Min Exi Min Combat Hostiles Destroyed 13 | . 3 3 . 7 Guns 12 | . 3 3 . 6 Cannons 1 | . . . . 1 Classes Destroyed 4 | . 3 . . 1 Worker 1 | . 1 . . . Recycler 2 | . 2 . . . Swarmer 6 | . 3 3 . . Assembled 7 | . . . . 7 Best Kill Streak 6 | . 6 3 . 3 Combat Bots Only 3 | . 3 3 . 3 Max Kills in Single Turn 1 | . 1 1 . 1 Gunslinging . | . . . . . Exploded . | . . . . . Melee . | . . . . . Uniques/NPCs Destroyed . | . . . . . Combat | -11 -10 -10 -10 -9 -------- Run | Yrd Mat Min Exi Min Hostile Shots Fired 78 | . 12 11 . 55 Missed 21 | . 4 3 . 14 Hits 57 | . 8 8 . 41 Melee 16 | . . . . 16 Projectile 41 | . 8 8 . 25 Critical Strikes 4 | . . . . 4 Damage Taken 970 | . 74 58 . 838 Core 264 | . 6 17 . 241 Absorbed by Shields . | . . . . . Core Remaining (%) 100 | 100 . . . . Volleys Fired 43 | . 10 5 . 28 Largest 2 | . 2 2 . 2 Hottest 90 | . 90 90 . 90 Shots Fired 78 | . 20 10 . 48 Gun 73 | . 20 10 . 43 Cannon 5 | . . . . 5 Launcher . | . . . . . Special . | . . . . . Kinetic 29 | . . . . 29 Thermal 30 | . 10 5 . 15 Explosive . | . . . . . Electromagnetic 19 | . 10 5 . 4 Robot Hit Streak 8 | . 8 1 . 7 Robot Miss Streak 4 | . 1 4 . 4 Penetration Max . | . . . . . Secondary Targets 1 | . . . . 1 Max Gunslinging Chain 1 | . . . . 1 Shots Hit Robots 46 | . 16 3 . 27 Core Hits 24 | . 7 3 . 14 Critical Kills . | . . . . . Critical Parts Destroyed 1 | . . . . 1 Critical Strikes 1 | . . . . 1 Destroy 1 | . . . . 1 Melee Attacks . | . . . . . Impact . | . . . . . Slashing . | . . . . . Piercing . | . . . . . Sneak Attacks . | . . . . . Combat Hostiles . | . . . . . Follow-up Attacks . | . . . . . Damage Inflicted 726 | . 278 48 . 400 Guns 572 | . 172 48 . 352 Cannons 41 | . . . . 41 Explosions 96 | . 96 . . . Melee . | . . . . . Ramming 17 | . 10 . . 7 Kinetic 221 | . . . . 221 Thermal 321 | . 172 24 . 125 Explosive . | . . . . . Electromagnetic 167 | . 96 24 . 47 Impact . | . . . . . Slashing . | . . . . . Piercing . | . . . . . Highest Corruption 6 | . . . . 6 Average Corruption 1 | . . . . 1 Corruption Purged . | . . . . . Corruption Blocked . | . . . . . Overload Shots . | . . . . . Overflow Damage 3 | . 3 . . . Projectiles . | . . . . . Explosions 3 | . 3 . . . Melee . | . . . . . Knockbacks 1 | . . . . 1 Impact . | . . . . . Kinetic 1 | . . . . 1 Secondary . | . . . . . Self-Inflicted Damage 8 | . 5 . . 3 Shots . | . . . . . Rammed 3 | . 1 . . 2 Targets Rammed 3 | . 1 . . 2 Kicked . | . . . . . Crushed . | . . . . . Highest Temperature 210 | . 210 150 . 156 Average Temperature 63 | . 89 76 . 44 Received Heat Transfer . | . . . . . Siege Activations . | . . . . . Martial Activations . | . . . . . Shielding Activations . | . . . . . Robots Disrupted . | . . . . . Combat Hostiles . | . . . . . Robots Corrupted . | . . . . . Combat Hostiles . | . . . . . Parts Fried . | . . . . . Impact Corruptions . | . . . . . Robots Melted . | . . . . . Combat Hostiles . | . . . . . Parts Melted 1 | . 1 . . . Heat Transferred 766 | . 322 74 . 370 Parts Sabotaged . | . . . . . Parts Stolen . | . . . . . Parts Stripped . | . . . . . Power Chain Reactions 2 | . 2 . . . Alert | -11 -10 -10 -10 -9 ------- Run | Yrd Mat Min Exi Min Maximum Alert Level . | . . . . . Low Security (%) 100 | 100 100 100 . 100 Level 1 . | . . . . . Level 2 . | . . . . . Level 3 . | . . . . . Level 4 . | . . . . . Level 5 . | . . . . . High Security . | . . . . . Max Security . | . . . . . Peak Influence 82 | . 82 70 . 15 Initial . | . . . . . Average 14 | . 28 51 . . Influence Increases 182 | . 96 70 . 16 Destroy 0b10 Robot/C 120 | . 60 60 . . Destroy 0b10 Robot/NC 15 | . 15 . . . Destroy Leader 20 | . 10 10 . . Successful Hack 4 | . 4 . . . Disable Machine 15 | . . . . 15 Destroy Structure 8 | . 7 . . 1 Influence Decreases 182 | . 96 30 40 16 Entered New Map 40 | . . . 40 . Time Decay 127 | . 96 30 . 1 Lost Part 15 | . . . . 15 Squads Dispatched . | . . . . . Investigation . | . . . . . Extermination . | . . . . . Reinforcement . | . . . . . Assault . | . . . . . Garrison . | . . . . . Intercept . | . . . . . Searches Triggered . | . . . . . Construction Impeded . | . . . . . Haulers Reinforced . | . . . . . Active Scanning Responses . | . . . . . Cargo Convoy Interrupts . | . . . . . Stealth | -11 -10 -10 -10 -9 --------- Run | Yrd Mat Min Exi Min Distress Signals 1 | . . . . 1 Communications Jammed . | . . . . . Distress Signals . | . . . . . Times Spotted 19 | . 6 2 . 11 Peak Tracking Total 4 | . 3 2 . 4 Tactical Retreats 1 | . . . . 1 Traps | -11 -10 -10 -10 -9 ------- Run | Yrd Mat Min Exi Min Traps Triggered 1 | . 1 . . . Indirectly . | . . . . . Trap Hack Attempts . | . . . . . Triggered . | . . . . . Disarmed . | . . . . . Reprogrammed . | . . . . . Reused . | . . . . . Traps Extracted . | . . . . . Installed . | . . . . . Triggered . | . . . . . Machines | -11 -10 -10 -10 -9 ---------- Run | Yrd Mat Min Exi Min Machines Disabled 1 | . . . . 1 Max in Single Turn 1 | . . . . 1 Machines Repaired . | . . . . . Machines Dismantled . | . . . . . Machines Sabotaged . | . . . . . Overloaded Fab Kills . | . . . . . Hacking | -11 -10 -10 -10 -9 --------- Run | Yrd Mat Min Exi Min Machines Accessed 7 | . 3 . 4 . Terminals 3 | . 3 . . . Fabricators . | . . . . . Repair Stations . | . . . . . Recycling Units . | . . . . . Scanalyzers . | . . . . . Garrison Access . | . . . . . Total Hacks 9 | . 5 . 4 . Successful 7 | . 3 . 4 . Failed 2 | . 2 . . . Catastrophic . | . . . . . Database Lockouts . | . . . . . Manual 1 | . 1 . . . Terminals 5 | . 5 . . . Fabricators . | . . . . . Repair Stations . | . . . . . Recycling Units . | . . . . . Scanalyzers . | . . . . . Garrison Access . | . . . . . Terminal Hacks 7 | . 3 . 4 . Record 6 | . 2 . 4 . Zone Layout 1 | . 1 . . . Fabricator Hacks . | . . . . . Repair Station Hacks . | . . . . . Recycling Unit Hacks . | . . . . . Scanalyzer . | . . . . . Garrison Access Hacks . | . . . . . Unauthorized Hacks . | . . . . . Terminals . | . . . . . Fabricators . | . . . . . Repair Stations . | . . . . . Recycling Units . | . . . . . Scanalyzers . | . . . . . Garrison Access . | . . . . . Data Cores Recovered . | . . . . . Used . | . . . . . Hacking Detections 2 | . 2 . . . Full Trace Events . | . . . . . Feedback Events . | . . . . . Feedback Blocked . | . . . . . Robot Schematics Acquired . | . . . . . Robots Built . | . . . . . Authchips . | . . . . . Time . | . . . . . Total Robot Build Rating . | . . . . . Part Schematics Acquired . | . . . . . Parts Built . | . . . . . Authchips . | . . . . . Time . | . . . . . Total Part Build Rating . | . . . . . Parts Repaired . | . . . . . Time . | . . . . . Parts Recycled . | . . . . . Recycled Matter . | . . . . . Retrieved Matter . | . . . . . Retrieved Components . | . . . . . Parts Scanalyzed . | . . . . . Part Schematics Acquired . | . . . . . Parts Damaged . | . . . . . Bothacking | -11 -10 -10 -10 -9 ------------ Run | Yrd Mat Min Exi Min Used RIF Installer . | . . . . . Robots Hacked . | . . . . . Non-combat . | . . . . . Combat . | . . . . . Robot Hacks Applied . | . . . . . Relay Couplers Released . | . . . . . Fabnet Peak Effective % . | . . . . . Robots Rewired . | . . . . . Allies Hacked . | . . . . . Hacks Repelled . | . . . . . Allies | -11 -10 -10 -10 -9 -------- Run | Yrd Mat Min Exi Min Total Allies . | . . . . . Largest Group . | . . . . . Highest-Rated Group . | . . . . . Highest-Rated Ally . | . . . . . Total Orders . | . . . . . Ally Attacks . | . . . . . Total Damage . | . . . . . Kills . | . . . . . Allies Corrupted . | . . . . . Allies Melted . | . . . . . Intel | -11 -10 -10 -10 -9 ------- Run | Yrd Mat Min Exi Min Active Infowar (turns) 958 | . 88 65 349 456 Optics 807 | . 88 65 349 305 Terrain 151 | . . . . 151 Robot Analysis Total . | . . . . . Derelict Logs Recovered . | . . . . . Drone Launches . | . . . . . Drone Recoveries . | . . . . . Exploration | -11 -10 -10 -10 -9 ------------- Run | Yrd Mat Min Exi Min Turns Passed 1193 | 3 296 65 349 480 Spaces Moved 1133 | 3 275 56 388 411 Core . | . . . . . Treads . | . . . . . Legs 3 | 3 . . . . Wheels 1130 | . 275 56 388 411 Hover . | . . . . . Flight . | . . . . . Fastest Speed 90 | 120 90 90 90 90 Average Speed 90 | 120 90 90 90 90 Slowest Speed 120 | 120 90 90 90 90 Overloaded Moves . | . . . . . Propulsion Burnouts . | . . . . . Robots Hopped . | . . . . . Potential Cave-ins . | . . . . . Cave-ins Triggered . | . . . . . Exploration Rate (%) 40 | 2 38 18 91 55 Regions Visited 4 Branch Regions 3 Pre-discovered Areas . | . . . . . Known Exits Taken . | . . . . . Unknown Exits Taken 4 | 1 1 1 1 . Scrap Searched 2 | . . . . 2 Spaces Dug . | . . . . . Terrain Destroyed 7 | . 6 . . 1 Melee . | . . . . . Projectile 1 | . . . . 1 AOE 6 | . 6 . . . Terrain Rammed . | . . . . . Walls Destroyed . | . . . . . Machines Disabled . | . . . . . Actions | -11 -10 -10 -10 -9 --------- Run | Yrd Mat Min Exi Min Total 1235 | 2 304 60 387 482 Wait 20 | . 5 . . 15 Move 1129 | 2 274 55 387 411 Hop . | . . . . . Pick Up 11 | . 4 . . 7 Fast Attach 3 | . 2 . . 1 Attach 5 | . 1 . . 4 Detach 1 | . 1 . . . Swap 7 | . 3 . . 4 Drop 13 | . 3 . . 10 Fire 43 | . 10 5 . 28 Melee . | . . . . . Ram 3 | . 1 . . 2 Kick . | . . . . . Crush . | . . . . . Escape Stasis . | . . . . . Rewire . | . . . . . Trap . | . . . . . Miscellaneous . | . . . . . Route ------- -11/Scrapyard -10/Materials (discovered 2 exits: [*Mat] / [*Min]) -10/Mines -10/Exiles (discovered 2 exits: [*Min x2]) -9/Mines History --------- Turn | Location | Event 1 | -11/Scrapyard | Discovered new exit (range 1) 4 | -11/Scrapyard | Entered Materials 144 | -10/Materials | Discovered new exit (range 16) 222 | -10/Materials | Discovered new exit (range 11) 300 | -10/Materials | Entered Mines 309 | -10/Mines | Build established: Mutant 361 | -10/Mines | Deemed a non-threat by the Exiles lab entrance 361 | -10/Mines | Discovered new exit (range 5) 365 | -10/Mines | Entered Exiles 365 | -10/Exiles | Found Exiles lab abandoned 377 | -10/Exiles | Discovered new exit (range 16) 705 | -10/Exiles | Discovered new exit (range 11) 714 | -10/Exiles | Entered Mines 735 | -9/Mines | Met a Derelict bent on vengeance 834 | -9/Mines | Assembled infested the area 1058 | -9/Mines | A weapon hastily lodged in a ceiling crevice suddenly fell to the ground 1098 | -9/Mines | Found a Scrap Suit stashed away for nefarious purposes 1100 | -9/Mines | Found Scrap Suit 1178 | -9/Mines | Core integrity fell below 50% 1185 | -9/Mines | Core integrity fell below 20% 1194 | -9/Mines | Destroyed by as-74113 with Assembled Heavy Rifle Last Messages --------------- 01099_ Dropped Aluminum Leg. 01100_ Acquired Scrap Suit. 01123_ Acquired 7 matter. 01129_ Acquired 8 matter. 01137_ Dropped Com. Wheel. 01142_ Acquired 10 matter. 01162_ Dropped Com. Wheel. 01164_ as-74113 knocked back. 01173_ as-32854 destroyed. 01176_ Laser Drill disabled. 01177_ Wheel severed. 01178_ Battle Cannon destroyed. 01178_ System corrupted by crushing effect (+5). 01182_ Autogun destroyed. 01183_ U-05 Engineer builds a Wall. 01184_ Knocked back. 01189_ Destroyed Asb. Hover Unit. 01192_ Lgt. Ion Engine destroyed. 01192_ as-40074 destroyed. [Achievement: Back For More] Map ----- +----------------------------------------------------+ | | | | | ????????????????????????????????????????? | | ????????????????????????????????????????? | | ????????????????????????????????????????? | | ????????????????????????????????????????? | | ????????????????????????????????????????? | | #####???????????????????????????????????? | | # #???????????????????????????????????? | | # # #??????????????????????#????????????? | | # # #???####????????????#??*!???????????? | | # # #??## ##?????????###?? %???????????? | | # # #??# ########## ## %#???????????? | | # # #### #=%#???????????? | | # # !% #=%#???? ??????? | | ####### #### ##a!#???????????? | | #?????# ### ###?%!##??????????? | | #????## ###??!*##??????????? | | #????# #????==*#??????????? | | #????# ## # = ####%%%#??????????? | | #???## ## ##% =|*!##?????????? | | #??## ### ##! != %! ##????????? | | #??# #### ###%= *%= ##???#???? | | #?# ##### #### =%= ##??????# | | #?## ##?## ##?## ==a= ##?????? | | ###??###???# #??##%@! " #?????? | | ???????????# ##?## u"" ##????? | | ???????????## ### " "% #????? | | ????????????## #????# | | ????????????### ## ##????# | | ????#???????#?##### ##?# ###?????? | | ????????????##????# ###??? ##??????? | | ??????????????#???# ##?????? #???????? | | ????????????###???# ##????????#???????? | | ???????????? #???# ##?????????????????? | | ??????#?????#=#???# =#??????????????????? | | ????????????#%#???#=%##?????????????????? | | ?###????????#*#???# #??????????????????? | | # ##????#??#%#???# #???#??????????????? | | ######### ##### #??????????????????? | | % % #????? ????????????? | | #########%########??????????????????? | | #???######=#??????? ?? ??????????????? | | = #????# ] %!#?????????????????????????? | | ##????#=####!#?????????????????????????? | | =#??##?#%#??# #??? ?? ??????????????????? | | ##????#*#??# #?????????????????????????? | | #??#?#%#??# ??????????? ?????????????? | | #????# #??###??? ?????????????????????? | | ##????# ###????????????????????????????? | +----------------------------------------------------+ Best States ------------- Heat Dissipation 25 Energy Generation 10 Energy Capacity 250 Matter Stores 300 Matter Capacity 300 Sight Range 18 Terrain Scan Range 16 Terrain Scan Density 10 Evasion (%) 42 Item Schematics ----------------- None Robot Schematics ------------------ None Fabricated ------------ Nothing Repaired ---------- Nothing Alien Tech Used ----------------- None Achievements -------------- Back For More Challenges ------------ None Game ------ Seed CommSystemProcessor Manual? 0 Play Time 00:19:10 Cumulative 34.2 hours Start 2025.06.17 @ 19:25:28 End 2025.06.17 @ 19:48:44 Sessions 1 Manual Loads 0 Difficulty Rogue Special Mode None Game No. 50 Rogue 50 Adventurer 0 Explorer 0 Win Type - Total 1 Types 1/0/0/0/0/0/0/0/0/0 Lore% 18 Gallery% 26 Achievement% 29 Wizard Run 0 Options --------- Layout 1 ASCII 0 Keyboard 0 Movement Mouse Keybinds 0 Fullscreen 0 Font 20/SmallcapsGlow Map View 76x50 Zoom Use 0% Tactical HUD 1 Map Filters NONE Filters NONE Steam 1 RUN: 09c88026-0d57-4d15-aacc-7ef798627801